bitfinex/quotes_ETHUSD_20250107
["timestamp","ask_amount","ask_price","bid_price","bid_amount"]
[1736280494422,0.2728372,3397.7,3397.3,2.95093]
[1736280494750,0.2728372,3397.7,3397.6,2.95075]
[1736280494751,0.2,3397.7,3397.6,2.95075]
[1736280495052,0.2,3397.7,3397.6,40.98017765]
[1736280495248,0.2,3397.7,3397.6,40.95075]
[1736280495463,0.2,3397.7,3397.6,44.3619394]
[1736280495629,0.2,3397.7,3397.6,45.8958394]
[1736280495827,0.2075,3398.5,3397.9,0.0075]
[1736280496731,0.0075,3398.3,3397.6,2.8611894]
[1736280496926,0.0075,3398.1,3397.5,2.10969302]
[1736280497126,0.0075,3398.1,3397.6,0.294]
[1736280497526,6.33626883,3398.8,3397.6,0.294]
[1736280497527,0.2,3398.3,3397.6,0.294]
[1736280497852,0.0075,3398.1,3397.6,0.294]
[1736280498229,0.2075,3397.9,3397.6,0.294]
[1736280498672,0.2075,3397.9,3397.6,1.1287103]
[1736280498822,0.2075,3397.9,3397.7,0.03693033]
[1736280499013,0.2075,3397.9,3397.6,4.10135762]
[1736280499330,0.2075,3397.9,3397.7,2.94315]
[1736280499529,0.2075,3397.9,3397.8,0.02942745]
[1736280499731,0.2075,3397.9,3397.8,0.52855622]
[1736280499957,0.2075,3397.9,3397.8,3.47163622]
[1736280500182,0.2075,3397.9,3397.8,3.76563622]
[1736280500735,0.2075,3397.9,3397.8,0.82255622]
[1736280500948,0.2075,3397.9,3397.8,0.83005622]
[1736280501759,0.5962,3398.5,3397.8,0.32342686]
[1736280501760,0.2,3398.4,3397.8,0.32342686]
[1736280502434,0.0075,3398.3,3397.8,3.26649686]
[1736280502983,0.0075,3398.3,3397.8,0.02942686]
[1736280503162,2.95015,3398.3,3397.5,1.184]
[1736280503757,0.0075,3398.1,3397.5,1.184]
[1736280503959,0.0075,3398.1,3397.8,2.94306]
[1736280504145,0.065308,3398.0,3397.9,0.02942673]
[1736280504348,0.0075,3398.0,3397.9,0.02942673]
[1736280504660,0.0075,3397.9,3397.7,3.0]
[1736280504838,0.0075,3398.3,3397.8,0.0075]
[1736280505033,0.2,3398.4,3397.9,0.55]
[1736280505269,1.18881045,3399.2,3397.9,0.55]
[1736280505270,0.2,3399.1,3398.0,0.02942636]
[1736280505499,1.18881045,3399.2,3399.1,2.94195]
[1736280505642,1.18881045,3399.2,3399.1,5.97886555]
[1736280505848,1.18881045,3399.5,3399.2,3.5575]
[1736280506161,1.18881045,3399.5,3399.4,6.49919]
[1736280506329,1.18881045,3399.5,3399.4,41.49919]
[1736280507364,0.5015294,3399.5,3399.4,43.00189]
[1736280507663,6e-07,3399.6,3399.5,6.4991]
[1736280508364,6e-07,3399.6,3399.5,41.4991]
[1736280508566,6e-07,3399.6,3399.5,45.8629894]
[1736280509247,6e-07,3399.6,3399.5,53.23630101]
[1736280509745,6e-07,3399.6,3399.5,18.23630101]
[1736280510682,6e-07,3399.6,3399.5,17.61017419]
[1736280510868,0.2075,3400.6,3399.9,0.0075]
[1736280511064,0.2075,3400.6,3399.9,0.302384]
[1736280511265,0.0075,3400.4,3399.9,3.243634]
[1736280511472,0.0075,3400.4,3400.1,0.0075]
[1736280511776,0.0075,3400.7,3400.3,2.94091]
[1736280512080,0.0075,3400.5,3400.4,0.323491]
[1736280512381,0.0075,3400.5,3400.3,0.02940555]
[1736280512583,0.06425419,3400.4,3400.3,0.02940555]
[1736280512780,0.0075,3400.4,3400.3,0.02940555]
[1736280512982,0.0075,3400.3,3400.2,0.294]
[1736280514085,0.0075,3400.6,3400.2,0.294]
[1736280514496,0.0075,3400.6,3400.0,0.0075]
[1736280515774,0.2,3400.7,3400.3,0.0075]
[1736280516080,0.2,3400.7,3400.4,2.94082]
[1736280516313,0.0075,3400.6,3400.3,0.0075]
[1736280516480,0.0075,3400.6,3400.2,1.0]
[1736280516681,0.0075,3400.4,3400.2,1.0]
[1736280516986,0.8037,3400.3,3400.2,1.0]
[1736280517213,3.74461,3400.3,3400.2,1.0]
[1736280517377,6.54245883,3400.3,3400.2,1.0]
[1736280517583,7.20293491,3400.3,3400.2,1.0]
[1736280519211,3.80888608,3400.3,3400.2,1.0]
[1736280521621,13.08483491,3400.3,3400.2,1.0]
[1736280522820,12.88483491,3400.3,3400.2,0.8]
[1736280523019,9.49078608,3400.3,3400.2,0.8]
[1736280524029,6.54987608,3400.3,3400.2,0.8]
[1736280524395,6.54237608,3400.3,3400.2,0.8]
[1736280524598,5.94617608,3400.3,3400.2,0.8]
[1736280525712,6.24617608,3400.3,3400.2,0.8]
[1736280525914,6.84237608,3400.3,3400.2,0.8]
[1736280526085,6.84987608,3400.3,3400.2,0.8]
[1736280526284,9.79078608,3400.3,3400.2,0.8]
[1736280531446,6.84987608,3400.3,3400.2,0.8]
[1736280531905,6.25367608,3400.3,3400.2,0.8]
[1736280532100,5.94617608,3400.3,3400.2,0.8]
[1736280533518,5.95367608,3400.3,3400.2,0.8]
[1736280534497,5.95367608,3400.3,3400.2,1.174116]
[1736280534795,5.94617608,3400.3,3400.2,1.174116]
[1736280535240,5.94617608,3400.3,3400.2,0.8]
[1736280535438,5.95367608,3400.3,3400.2,0.8]
[1736280536001,5.94617608,3400.3,3400.2,8.3154]
[1736280536255,5.94617608,3400.3,3400.2,12.25944883]
[1736280536458,5.94617608,3400.3,3400.2,49.66951471]
[1736280536748,5.8819,3400.3,3400.2,46.27546588]
[1736280537452,5.8894,3400.3,3400.2,45.71796588]
[1736280537763,5.8894,3400.3,3400.2,3.2569]
[1736280537915,5.94935394,3400.3,3400.2,3.2569]
[1736280538500,5.94935394,3400.3,3400.2,4.27021719]
[1736280538699,3.70928799,3400.3,3400.2,2.70331719]
[1736280539053,3.76924193,3400.3,3400.2,5.64431719]
[1736280539218,3.76924193,3400.3,3400.2,6.98485856]
[1736280539424,3.70928799,3400.3,3400.2,6.99235856]
[1736280539757,3.70928799,3400.3,3400.2,5.97904137]
[1736280540056,3.76924193,3400.3,3400.2,4.58544137]
[1736280540232,3.76924193,3400.3,3400.2,1.69]
[1736280541255,3.70928799,3400.3,3400.2,1.69]
[1736280541563,3.76924193,3400.3,3400.2,1.69]
[1736280541953,7.60635193,3400.3,3400.2,1.69]
[1736280543098,4.66544193,3400.3,3400.2,1.69]
[1736280543299,4.06174193,3400.3,3400.2,1.69]
[1736280544008,4.06924193,3400.3,3400.2,1.69]
[1736280546274,4.06174193,3400.3,3400.2,1.69]
[1736280546687,3.76924193,3400.3,3400.2,1.69]
[1736280547672,6.71015193,3400.3,3400.2,1.69]
[1736280548270,7.01015193,3400.3,3400.2,1.69]
[1736280548503,7.60635193,3400.3,3400.2,1.69]
[1736280551795,4.65794193,3400.3,3400.2,1.69]
[1736280552208,4.66544193,3400.3,3400.2,1.69]
[1736280552885,7.60635193,3400.3,3400.2,1.69]
[1736280553910,11.00040076,3400.3,3400.2,1.6825]
[1736280554123,11.55040076,3400.3,3400.2,1.6825]
[1736280554287,14.55040076,3400.3,3400.2,0.212]
[1736280554488,3.24143,3399.7,3399.6,1.22547808]
[1736280554812,7.01018939,3399.7,3399.6,1.22547808]
[1736280555131,7.01018939,3399.7,3399.4,1.52530991]
[1736280555132,0.0075,3399.6,3399.2,1.22547808]
[1736280555275,0.0075,3399.5,3399.2,1.22547808]
[1736280555480,3.70928799,3399.5,3399.2,1.22547808]
[1736280555872,0.0075,3399.3,3399.2,1.22547808]
[1736280556195,3.70928799,3399.3,3399.2,1.22547808]
[1736280556391,3.76875939,3399.3,3399.2,1.22547808]
[1736280556722,3.76875939,3399.3,3398.9,1.22547808]
[1736280556723,0.0075,3399.1,3398.9,1.22547808]
[1736280556904,3.70928799,3399.1,3398.9,1.22547808]
[1736280557217,0.06610117,3399.0,3398.9,1.22547808]
[1736280557535,0.0075,3399.0,3398.9,1.22547808]
[1736280557829,0.06610117,3399.0,3398.9,1.22547808]
[1736280558616,0.05860117,3399.0,3398.9,8.01328185]
[1736280558822,3.70178799,3399.1,3398.9,8.01328185]
[1736280558823,3.70178799,3399.1,3399.0,2.94954]
[1736280559196,3.70178799,3399.1,3399.0,5.94954]
[1736280559395,3.70178799,3399.1,3399.0,7.46094]
[1736280559614,3.70178799,3399.1,3399.0,8.01094]
[1736280559819,3.70178799,3399.1,3399.0,9.74789954]
[1736280560141,3.70928799,3399.1,3399.0,9.19789954]
[1736280560511,3.70928799,3399.1,3399.0,7.46094]
[1736280560860,3.76801352,3399.1,3399.0,1.8034]
[1736280561739,3.76801352,3399.1,3399.0,6.9175307]
[1736280561939,3.76801352,3399.1,3399.0,6.93350386]
[1736280562412,3.76801352,3399.1,3399.0,6.64150386]
[1736280562599,3.76801352,3399.1,3399.0,7.65975263]
[1736280563003,3.70928799,3399.1,3399.0,7.65975263]
[1736280563237,3.76791117,3399.1,3399.0,7.65975263]
[1736280563701,3.70928799,3399.1,3399.0,7.65975263]
[1736280563898,3.76791117,3399.1,3399.0,7.65975263]
[1736280565731,3.70928799,3399.1,3399.0,7.65975263]
[1736280566140,3.70928799,3399.1,3399.0,8.62865609]
[1736280566341,3.76791117,3399.1,3399.0,10.17565609]
[1736280566547,3.70928799,3399.1,3399.0,10.17565609]
[1736280566856,3.70928799,3399.1,3399.0,7.65975263]
[1736280567241,3.70178799,3399.1,3399.0,10.60929263]
[1736280568343,3.70928799,3399.1,3399.0,7.65975263]
[1736280568748,3.76559265,3399.1,3399.0,7.65975263]
[1736280568941,6.65123799,3399.1,3399.0,7.65975263]
[1736280569180,6.70754265,3399.1,3399.0,7.65975263]
[1736280569835,3.76559265,3399.1,3399.0,7.65975263]
[1736280571585,6.70754265,3399.1,3399.0,7.65975263]
[1736280572080,0.0075,3398.8,3398.7,1.23121463]
[1736280572287,3.70928799,3398.8,3398.7,1.23121463]
[1736280572638,3.76559265,3398.8,3398.7,1.23121463]
[1736280573071,3.76559265,3398.8,3398.5,1.01824877]
[1736280573779,4.06559265,3398.8,3398.5,1.01824877]
[1736280576057,3.24988,3398.6,3398.4,9.5e-06]
[1736280576241,6.53884,3398.3,3398.2,4.63e-06]
[1736280576567,3.0,3398.2,3398.1,6.57e-06]
[1736280576733,6.54652,3398.1,3398.0,2.03553175]
[1736280576932,9.65210799,3398.1,3398.0,2.03553175]
[1736280577183,9.70766572,3398.1,3398.0,2.03553175]
[1736280578540,0.0075,3397.7,3396.8,1.6644]
[1736280578738,0.05163883,3397.6,3396.8,2.125241]
[1736280579054,0.0075,3397.5,3396.8,2.125241]
[1736280579262,3.70928799,3397.5,3396.8,2.125241]
[1736280579439,3.70928799,3397.5,3396.8,5.069171]
[1736280579638,0.05163883,3397.4,3396.8,4.60833]
[1736280579936,0.0075,3397.3,3396.8,4.60833]
[1736280580135,0.05168283,3397.2,3396.8,1.6644]
[1736280580336,0.0075,3397.1,3396.5,1.6568]
[1736280580638,0.0075,3396.9,3396.6,0.66923252]
[1736280581478,0.0075,3397.4,3396.6,0.66923252]
[1736280581875,0.0075,3397.4,3396.1,1.6513]
[1736280581876,0.0075,3397.2,3396.1,1.6513]
[1736280582092,0.0075,3397.0,3396.1,1.6513]
[1736280582289,3.70928799,3397.0,3396.1,4.6513]
[1736280582458,0.0075,3396.8,3396.1,4.6513]
[1736280582949,0.0075,3396.6,3396.1,4.59581]
[1736280583173,0.0075,3396.6,3396.2,0.789431]
[1736280583503,0.0075,3396.4,3396.2,0.789431]
[1736280584051,0.05918283,3396.3,3396.2,0.789431]
[1736280584284,0.0075,3396.2,3395.9,1.5197]
[1736280584480,0.0075,3396.2,3395.4,2.94511]
[1736280584667,0.0075,3396.0,3395.5,1.5677]
[1736280585190,0.0075,3396.2,3395.5,1.5677]
[1736280585497,0.6037,3396.0,3395.2,0.03824643]
[1736280585947,4.30548799,3396.0,3395.2,0.03824643]
[1736280586095,0.0075,3395.8,3395.2,0.03824643]
[1736280586393,0.0075,3395.6,3395.2,0.03824643]
[1736280586802,0.0075,3395.4,3395.2,0.03824643]
[1736280587094,0.3075,3395.4,3395.2,0.03824643]
[1736280587297,0.05821437,3395.3,3395.2,0.03824643]
[1736280587456,0.0075,3395.2,3394.6,1.6216]
[1736280587794,0.0075,3395.2,3394.8,2.94566]
[1736280588097,3.70178799,3395.6,3395.0,2.9455]
[1736280588270,0.0075,3395.5,3394.8,0.0075]
[1736280588470,0.05651176,3395.5,3394.8,0.0075]
[1736280588666,0.05651176,3395.5,3395.2,2.94529]
[1736280589173,0.05651176,3395.5,3395.1,2.94538]
[1736280589497,0.05651176,3395.5,3395.3,2.94516]
[1736280589715,0.05651176,3395.5,3395.4,2.94516]
[1736280589898,0.04901176,3395.5,3395.4,2.95266]
[1736280590275,0.04901176,3395.5,3395.4,5.95266]
[1736280591117,0.05651176,3395.5,3395.4,5.95266]
[1736280591315,0.05651176,3395.5,3395.4,7.0632488]
[1736280592628,0.05651176,3395.5,3395.4,7.64523224]
[1736280594036,0.04901176,3395.5,3395.4,9.81413224]
[1736280594195,9.75e-06,3395.6,3395.5,8.14647]
[1736280594601,20.0,3396.0,3395.5,8.14647]
[1736280594816,0.0075,3395.9,3395.8,11.54040975]
[1736280595377,0.0075,3395.9,3395.8,8.14621]
[1736280596015,0.0075,3395.9,3395.8,7.58871]
[1736280596219,0.0075,3395.9,3395.8,7.59621]
[1736280596541,0.0075,3395.9,3395.8,8.14621]
[1736280596684,20.0,3396.0,3395.9,8.14612]
[1736280597084,11.86138,3395.9,3395.8,4.68043728]
[1736280597303,11.86138,3395.9,3395.8,7.62524728]
[1736280599205,11.86138,3395.9,3395.8,11.18274728]
[1736280599896,19.1517679,3396.0,3395.9,3.5575]
[1736280600099,19.1517679,3396.0,3395.9,9.59899197]
[1736280600303,19.1592679,3396.0,3395.9,9.59899197]
[1736280600967,19.1592679,3396.0,3395.9,9.04899197]
[1736280601830,19.20472624,3396.0,3395.9,9.04899197]
[1736280602030,19.20472624,3396.0,3395.9,6.04899197]
[1736280602238,19.20472624,3396.0,3395.9,4.53542]
[1736280602456,19.20472624,3396.0,3395.9,0.0075]
[1736280602958,0.0075,3395.9,3395.8,0.291]
[1736280603088,0.0075,3395.9,3395.4,0.291]
[1736280603291,0.05295834,3395.9,3395.4,2.94513]
[1736280603514,0.05295834,3395.9,3395.5,0.64110327]
[1736280603704,0.05295834,3395.9,3395.6,2.94496]
[1736280603900,0.05295834,3395.9,3395.2,2.5429472]
[1736280604307,0.0075,3395.9,3395.4,2.94514]
[1736280604744,0.0075,3395.7,3395.4,2.94514]
[1736280604947,0.0075,3395.7,3395.2,2.5429472]
[1736280604948,0.0075,3395.7,3395.3,0.0075]
[1736280605154,0.0075,3395.9,3395.3,0.72525546]
[1736280605351,0.3075,3395.7,3394.6,1.6044]
[1736280605553,2.9526,3395.5,3394.5,1.22540767]
[1736280605861,0.0075,3394.8,3394.5,1.22540767]
[1736280606361,0.0075,3394.6,3394.5,1.22540767]
[1736280606815,0.0075,3394.7,3393.9,1.21790767]
[1736280607011,0.0075,3394.7,3394.0,0.49514192]
[1736280607525,0.0075,3394.7,3394.5,2.94591]
[1736280607716,0.0075,3394.7,3394.3,2.94609]
[1736280607925,0.0075,3394.7,3394.5,2.94591]
[1736280608117,0.0075,3394.7,3394.4,0.03695819]
[1736280608317,0.0075,3394.7,3394.4,0.0075]
[1736280608528,1.5935,3395.5,3394.6,2.94577]
[1736280608952,0.04545834,3395.4,3394.6,2.94577]
[1736280609134,4.53881,3395.3,3394.4,0.36926998]
[1736280609325,0.0075,3395.2,3394.4,0.36926998]
[1736280609538,0.05112074,3395.2,3394.4,0.36926998]
[1736280609854,0.05112074,3395.2,3394.5,0.331536]
[1736280610057,0.0075,3395.0,3394.2,2.94617]
[1736280610435,0.0075,3394.8,3394.2,2.94617]
[1736280611053,1.21235898,3397.7,3394.0,0.49514192]
[1736280611054,1.5847,3394.6,3394.0,0.49514192]
[1736280611260,1.5847,3394.6,3394.0,2.94635]
[1736280611557,1.5847,3394.6,3394.1,2.94626]
[1736280611855,0.0075,3394.4,3394.0,0.0075]
[1736280612061,0.0075,3394.4,3394.3,2.94611]
[1736280612218,0.0075,3394.3,3394.1,2.94627]
[1736280612420,0.0075,3394.3,3394.1,2.94623]
[1736280612621,0.0075,3394.3,3393.7,2.95413]
[1736280612826,1.6717,3394.9,3394.2,2.9462]
[1736280613026,0.0075,3394.7,3394.2,2.9462]
[1736280613241,0.0075,3394.7,3394.2,1.80675615]
[1736280613823,0.0075,3394.8,3394.2,1.80675615]
[1736280614020,0.0075,3394.6,3394.0,2.94634]
[1736280614225,0.0075,3394.6,3393.9,35.29]
[1736280614420,0.0075,3394.6,3393.9,0.29]
[1736280614648,0.0075,3394.4,3393.9,0.29]
[1736280615255,0.0075,3394.8,3393.9,0.29]
[1736280615545,0.0075,3394.6,3393.9,0.29]
[1736280616065,0.3075,3394.4,3393.5,0.29]
[1736280616265,0.0075,3394.2,3393.7,2.94662]
[1736280616654,0.0075,3394.0,3393.7,2.94662]
[1736280617042,0.0075,3393.8,3393.7,2.94662]
[1736280617450,0.0075,3393.8,3393.5,0.47872667]
[1736280617651,0.0075,3394.3,3393.6,2.94672]
[1736280617854,0.0075,3394.1,3393.7,2.94663]
[1736280618036,0.0075,3394.1,3393.7,3.29593886]
[1736280618231,0.0075,3393.9,3393.7,0.34930886]
[1736280618573,0.0075,3393.7,3393.6,2.94672]
[1736280618781,0.0075,3393.7,3393.5,0.18872667]
[1736280618931,1.6046,3394.0,3393.4,0.03826672]
[1736280619135,0.0075,3393.9,3393.4,0.03826672]
[1736280619359,0.05070631,3393.9,3393.5,2.94679]
[1736280620480,0.0075,3393.6,3393.5,2.94679]
[1736280620787,0.04971324,3393.6,3393.5,2.94679]
[1736280621539,0.04971324,3393.6,3393.4,0.03826672]
[1736280622352,1.5677,3393.5,3393.4,0.03826672]
[1736280622755,0.0075,3393.4,3392.5,1.22413064]
[1736280622957,0.0075,3393.4,3392.6,2.94755]
[1736280623165,0.0075,3393.4,3392.5,2.02654892]
[1736280623523,0.0075,3393.2,3392.5,1.22413064]
[1736280623785,0.0075,3393.0,3392.5,1.22413064]
[1736280623942,0.0075,3392.6,3392.5,1.22413064]
[1736280624463,0.04856534,3392.6,3392.1,2.94799]
[1736280624865,0.04856534,3392.6,3392.1,3.36520206]
[1736280625072,1.6133,3392.4,3391.9,1.22413064]
[1736280625372,4.6133,3392.4,3391.9,1.22413064]
[1736280625551,0.0075,3392.0,3391.9,1.22413064]
[1736280626047,7.90115019,3392.0,3391.9,1.21663064]
[1736280626284,7.90115019,3392.0,3391.1,3.69432663]
[1736280626285,1.6133,3391.8,3391.1,1.83811151]
[1736280626488,3.40169975,3391.2,3391.1,1.83811151]
[1736280626688,10.95929975,3391.2,3391.1,1.83811151]
[1736280626871,10.99782424,3391.2,3391.1,1.83811151]
[1736280627187,11.54782424,3391.2,3391.1,1.83811151]
[1736280627871,11.54782424,3391.2,3389.5,0.1696206]
[1736280627872,1.5956,3390.6,3389.5,0.1696206]
[1736280628072,0.0075,3390.2,3389.5,0.48162766]
[1736280628392,0.0075,3390.2,3390.1,2.94976]
[1736280628569,1.5881,3390.9,3389.7,2.95011]
[1736280628774,0.0075,3390.8,3389.8,2.95002]
[1736280629082,0.0075,3390.6,3389.7,2.95011]
[1736280629286,0.0075,3390.6,3390.1,2.9497]
[1736280629503,0.0075,3390.6,3389.8,0.0075]
[1736280629676,0.0075,3390.4,3390.2,2.94965]
[1736280630060,0.0075,3390.2,3390.0,2.94985]
[1736280630596,0.0075,3390.8,3390.0,2.94985]
[1736280630805,0.0075,3390.8,3389.8,37.95002]
[1736280631041,0.0075,3390.6,3389.5,0.1696206]
[1736280631203,0.0075,3390.6,3389.5,0.69783566]
[1736280631564,0.0075,3390.4,3389.7,2.95005]
[1736280632202,0.0075,3390.6,3389.9,2.9499]
[1736280632397,0.0075,3390.6,3390.0,0.29499]
[1736280632572,0.06578321,3390.5,3390.1,35.0]
[1736280632769,0.0075,3390.4,3390.1,35.0]
[1736280633498,0.0075,3390.7,3390.1,35.0]
[1736280633859,0.0075,3390.5,3389.6,2.95013]
[1736280634057,0.0075,3390.5,3389.7,0.39389657]
[1736280634299,0.0075,3390.3,3389.8,35.0]
[1736280634499,0.0075,3390.3,3389.7,0.39389657]
[1736280634500,0.0075,3390.1,3389.5,0.98883566]
[1736280634811,0.06578321,3390.0,3389.5,0.98883566]
[1736280635015,0.0075,3389.9,3389.6,35.0]
[1736280635221,0.0075,3389.9,3389.7,2.95011]
[1736280635795,0.0075,3390.1,3389.7,2.95011]
[1736280635991,0.0075,3390.1,3389.5,0.4606206]
[1736280636201,0.0075,3390.1,3389.6,35.0]
[1736280636519,0.0075,3389.9,3389.7,2.8611894]
[1736280637317,0.0075,3390.1,3389.7,2.8611894]
[1736280637616,0.3075,3389.9,3389.5,0.1696206]
[1736280637911,0.3075,3389.7,3389.5,0.1696206]
[1736280638321,1.5973,3389.6,3389.5,0.1696206]
[1736280638630,7.855,3389.6,3389.5,0.1621206]
[1736280638773,4.96980161,3389.6,3389.5,0.1621206]
[1736280638972,1.96980161,3389.6,3389.5,0.1621206]
[1736280640126,4.92000161,3389.6,3389.5,0.1546206]
[1736280640419,8.47000161,3389.6,3389.5,0.1546206]
[1736280640619,4.647,3388.9,3387.9,3.2416]
[1736280640775,0.06433036,3388.8,3388.0,0.35367552]
[1736280640971,0.06433036,3388.8,3388.2,2.95139]
[1736280641179,1.6395,3388.9,3388.0,0.32416]
[1736280641387,1.6395,3388.9,3387.5,0.0075]
[1736280641388,0.0075,3388.8,3387.5,1.5904]
[1736280641711,0.0714983,3388.8,3387.6,2.98895551]
[1736280641913,0.0714983,3388.8,3387.6,2.95944]
[1736280642113,0.0714983,3388.8,3387.7,0.0075]
[1736280642335,0.0075,3388.8,3387.9,2.95161]
[1736280642632,0.0075,3388.4,3387.8,2.95172]
[1736280642837,0.0075,3388.2,3387.8,2.95172]
[1736280643056,0.0075,3388.2,3387.8,0.45716373]
[1736280643201,0.0075,3388.2,3387.6,0.02951723]
[1736280643202,0.0075,3388.2,3388.1,2.9515]
[1736280643535,0.0075,3388.4,3388.1,2.9515]
[1736280643838,0.0075,3388.2,3388.1,2.9515]
[1736280643994,0.0075,3388.2,3387.6,0.0075]
[1736280644202,0.0075,3388.2,3388.1,2.9515]
[1736280644758,1.637,3388.4,3386.3,1.5047]
[1736280644893,0.14,3387.9,3386.6,2.95281]
[1736280645093,0.0075,3387.8,3387.0,0.0075]
[1736280645445,0.0075,3387.8,3387.4,2.95204]
[1736280646129,0.0075,3387.6,3386.5,4.97379975]
[1736280646323,0.0075,3387.6,3386.9,2.95248]
[1736280646647,0.0075,3387.6,3387.0,2.95239]
[1736280646648,0.0075,3387.4,3387.0,2.95239]
[1736280647049,0.06176178,3387.3,3387.0,2.95239]
[1736280647198,0.14,3388.5,3387.1,0.02952198]
[1736280647537,1.65221064,3388.4,3387.4,3.40169975]
[1736280647735,1.65221064,3388.4,3388.0,2.95152]
[1736280647921,1.5907,3388.4,3387.7,0.02951469]
[1736280648127,0.06187256,3388.3,3388.1,2.95141]
[1736280648321,0.0075,3388.2,3388.1,2.95141]
[1736280648497,1.6448,3388.7,3388.1,2.95141]
[1736280648939,0.0075,3388.5,3387.6,2.95189]
[1736280649140,0.0075,3388.5,3387.7,2.95183]
[1736280649322,0.0075,3388.5,3387.9,2.95168]
[1736280649522,0.0075,3388.3,3387.9,2.95168]
[1736280649749,0.0620867,3388.4,3387.7,0.02951697]
[1736280649954,1.6448,3388.7,3388.1,2.95142]
[1736280650141,1.6448,3388.7,3387.7,0.0075]
[1736280650450,0.0075,3388.5,3387.6,2.95189]
[1736280650755,6.34483975,3389.1,3386.9,5.05639975]
[1736280650756,0.1475,3388.1,3386.9,5.05639975]
[1736280650919,0.1475,3388.1,3387.0,0.31952209]
[1736280651119,0.14,3388.0,3387.3,2.95216]
[1736280651328,0.1475,3387.9,3387.3,2.95216]
[1736280651730,0.1475,3387.9,3387.1,2.95233]
[1736280651929,0.0075,3387.7,3387.2,2.95228]
[1736280652229,0.0075,3387.5,3387.0,2.95239]
[1736280652427,0.0075,3387.3,3387.0,0.4906063]
[1736280652752,0.0075,3387.3,3386.5,2.95286]
[1736280653154,0.0075,3387.1,3386.5,2.95286]
[1736280653622,0.14,3388.2,3386.5,3.39419975]
[1736280653769,1.5167,3387.9,3387.6,2.95193]
[1736280654000,0.0075,3387.8,3386.5,1.5976]
[1736280654172,0.06062429,3387.8,3387.6,2.95194]
[1736280654378,0.06062429,3387.8,3387.7,2.95185]
[1736280654686,1.5416,3388.3,3387.4,0.29]
[1736280654906,0.0075,3388.2,3387.8,2.95168]
[1736280655049,0.05859004,3388.2,3387.9,2.95159]
[1736280655250,1.5416,3388.3,3387.9,2.95159]
[1736280655511,0.05859004,3388.2,3387.9,2.95159]
[1736280655702,0.0075,3388.1,3387.7,2.95182]
[1736280655867,0.0075,3388.1,3387.1,1.5751]
[1736280656057,0.0075,3388.1,3387.3,2.95218]
[1736280656403,0.0075,3387.7,3387.1,2.95234]
[1736280656709,0.0075,3387.3,3386.3,1.5751]
[1736280656857,0.0075,3387.1,3386.0,2.95327]
[1736280657057,0.0075,3387.1,3386.7,2.95268]
[1736280657313,0.0075,3386.9,3386.0,3.54672496]
[1736280657514,0.0075,3386.9,3386.8,2.95263]
[1736280658174,0.0075,3387.1,3386.8,2.95263]
[1736280658379,0.0075,3387.1,3386.9,2.95253]
[1736280658575,0.06609004,3387.0,3386.9,2.95253]
[1736280658782,0.0075,3387.1,3386.8,2.95263]
[1736280659179,0.0075,3387.1,3386.6,2.9528]
[1736280659359,0.0075,3387.1,3386.4,0.29]
[1736280659562,0.0075,3387.1,3386.5,2.95287]
[1736280659816,0.0075,3386.9,3386.5,2.95287]
[1736280660306,0.0075,3386.7,3386.3,2.95306]
[1736280660510,0.0075,3386.7,3386.2,0.1696206]
[1736280660692,0.0075,3386.7,3386.6,4.50111]
[1736280660870,1.5714,3387.6,3386.8,2.95263]
[1736280661150,1.5714,3387.6,3387.0,2.95246]
[1736280661281,1.5714,3387.6,3387.2,2.95225]
[1736280661912,1.5714,3387.6,3386.9,0.0075]
[1736280662077,1.5714,3387.6,3386.8,2.95258]
[1736280662264,0.0075,3387.5,3386.8,2.95261]
[1736280662469,0.0075,3387.5,3386.4,6.68419975]
[1736280662682,0.0075,3387.5,3386.7,2.95272]
[1736280662889,1.7217,3387.9,3387.5,2.95202]
[1736280663066,0.0075,3387.8,3387.2,2.95221]
[1736280663267,0.0075,3387.6,3386.9,3.0]
[1736280663494,1.5817,3387.5,3387.0,0.02952226]
[1736280663769,0.0075,3387.4,3387.2,2.95225]
[1736280664004,0.0075,3387.4,3387.3,2.9522]
[1736280664360,2.9509,3388.8,3387.3,2.9522]
[1736280664361,0.14,3388.2,3387.9,2.95168]
[1736280664762,6.34427975,3389.8,3387.9,2.95918]
[1736280664763,0.14,3388.9,3387.9,2.95918]
[1736280665515,1.5817,3388.3,3387.9,2.95168]
[1736280665815,0.0075,3387.9,3387.7,3.24185]
[1736280665981,0.1475,3387.9,3387.7,0.29]
[1736280666185,0.05958801,3387.8,3387.7,0.29]
[1736280666586,0.05958801,3387.8,3387.7,3.24185]
[1736280666968,0.06708801,3387.8,3387.7,3.861243]
[1736280667382,0.06708801,3387.8,3387.7,3.571243]
[1736280667789,0.06708801,3387.8,3387.7,3.578743]
[1736280668111,19.1517679,3388.0,3387.8,0.0075]
[1736280668316,0.0075,3387.9,3387.7,2.95182]
[1736280668523,0.0674428,3387.9,3387.4,3.24206]
[1736280668820,0.0674428,3387.9,3387.4,3.2421]
[1736280668968,0.0674428,3387.9,3387.5,2.952]
[1736280669619,0.0674428,3387.9,3387.6,2.95191]
[1736280669817,0.0674428,3387.9,3387.5,0.0075]
[1736280670034,0.0674428,3387.9,3387.7,2.95182]
[1736280670035,0.0075,3387.9,3387.7,2.95182]
[1736280670203,0.0674428,3387.8,3387.7,2.95185]
[1736280670368,0.0674428,3387.8,3387.5,0.0075]
[1736280670369,0.0075,3387.7,3387.5,0.0075]
[1736280670570,0.0075,3387.7,3387.6,2.95194]
[1736280670816,0.0075,3387.7,3387.4,0.29]
[1736280670978,0.0075,3387.7,3387.4,3.24209]
[1736280671182,20.7649679,3388.0,3386.8,2.95262]
[1736280671183,2.95921,3387.9,3386.8,2.95262]
[1736280671504,20.7649679,3388.0,3386.8,2.9526]
[1736280671505,0.0075,3387.5,3386.8,2.9526]